fUSD/lending_fUSD_20250615
["ID","MTS","AMOUNT","RATE_DAILY","PERIOD"]
[365831305,1749945615671,2585.89,0.000198,30]
[365831307,1749945621507,385.34,0.00013699,2]
[365831309,1749945731783,202.0,0.00015196,2]
[365831310,1749945778398,1100.30063002,0.00024658,120]
[365831311,1749945785939,1100.30063002,0.00025,120]
[365831313,1749945870771,150.0,0.00024546,120]
[365831314,1749945881787,202.0,0.00015196,2]
[365831316,1749945931505,150.0,0.00019611,120]
[365831317,1749945932410,1000.0,0.00015785,2]
[365831318,1749945966780,8122.71,0.00015785,2]
[365831319,1749945990726,150.0,0.00021547,120]
[365831320,1749946006974,1296.09180974,0.00025,120]
[365831343,1749946092236,201.0,0.00015316,2]
[365831345,1749946111991,2000.0,0.00015771,2]
[365831350,1749946170549,150.0,0.00021104,120]
[365831351,1749946228203,666.0,0.00015657,2]
[365831353,1749946232239,-250.0,0.00015828,2]
[365831354,1749946232249,-250.0,0.00015844,2]
[365831355,1749946232260,-154.93,0.00015861,2]
[365831356,1749946232269,-112.95,0.0001594,2]
[365831357,1749946232315,-350.0,0.0001594,2]
[365831358,1749946232329,-2593.94,0.0001594,2]
[365831359,1749946232338,-485.4,0.00015994,2]
[365831360,1749946232348,-3152.42,0.00016,2]
[365831361,1749946232357,-3152.42,0.00016,2]
[365831362,1749946232367,-3152.42,0.00016,2]
[365831363,1749946232377,-3152.42,0.00016,2]
[365831364,1749946232387,-3152.42,0.00016,2]
[365831365,1749946232397,-520.28,0.00016016,2]
[365831366,1749946232407,-300.0,0.00016163,2]
[365831367,1749946232417,-1200.0,0.00016163,2]
[365831368,1749946232427,-459.0,0.00016164,2]
[365831369,1749946232436,-300.0,0.00016164,2]
[365831370,1749946232446,-151.98,0.00016165,2]
[365831371,1749946232456,-152.14,0.00016165,2]
[365831372,1749946232465,-151.95,0.00016165,2]
[365831373,1749946232475,-505.73,0.00016165,2]
[365831374,1749946232486,-500.21,0.00016165,2]
[365831375,1749946232496,-491.49,0.00016165,2]
[365831376,1749946232506,-501.81,0.00016165,2]
[365831377,1749946232515,-491.19,0.00016165,2]
[365831379,1749946232526,-497.98,0.00016165,2]
[365831381,1749946232535,-508.35,0.00016165,2]
[365831383,1749946232546,-494.91,0.00016165,2]
[365831385,1749946232555,-505.27,0.00016165,2]
[365831387,1749946232566,-491.33,0.00016165,2]
[365831389,1749946232575,-497.24,0.00016165,2]
[365831390,1749946232585,-503.98,0.00016165,2]
[365831391,1749946232596,-499.48,0.00016165,2]
[365831392,1749946232606,-502.02,0.00016165,2]
[365831393,1749946232615,-509.63,0.00016165,2]
[365831394,1749946232625,-505.49,0.00016165,2]
[365831395,1749946232635,-509.23,0.00016165,2]
[365831396,1749946232644,-494.95,0.00016165,2]
[365831397,1749946232655,-490.88,0.00016165,2]
[365831398,1749946232664,-498.29,0.00016165,2]
[365831399,1749946232675,-498.81,0.00016165,2]
[365831400,1749946232686,-505.6,0.00016165,2]
[365831401,1749946232695,-504.33,0.00016165,2]
[365831402,1749946232705,-501.69,0.00016165,2]
[365831403,1749946232715,-499.93,0.00016165,2]
[365831405,1749946232725,-499.75,0.00016165,2]
[365831407,1749946232735,-492.82,0.00016165,2]
[365831409,1749946232744,-502.13,0.00016165,2]
[365831411,1749946232753,-507.25,0.00016165,2]
[365831413,1749946232763,-505.95,0.00016165,2]
[365831415,1749946232773,-492.58,0.00016165,2]
[365831417,1749946232786,-507.59,0.00016165,2]
[365831418,1749946232795,-508.91,0.00016165,2]
[365831421,1749946232805,-494.67,0.00016165,2]
[365831422,1749946232814,-505.43,0.00016165,2]
[365831424,1749946232827,-508.27,0.00016165,2]
[365831426,1749946232837,-499.48,0.00016165,2]
[365831429,1749946232848,-501.52,0.00016165,2]
[365831431,1749946232859,-509.89,0.00016165,2]
[365831433,1749946232868,-500.0,0.00016165,2]
[365831435,1749946232878,-1170.3,0.00016218,2]
[365831437,1749946232888,-207.4,0.00016393,2]
[365831439,1749946232897,-151.0,0.00016393,2]
[365831441,1749946232907,-1079.0,0.00016403,2]
[365831443,1749946232917,-29999.99,0.00016403,2]
[365831445,1749946232927,-201.0,0.00016433,3]
[365831447,1749946232936,-833.63237626,0.00016533,2]
[365831449,1749946232946,-804.53,0.00016545,2]
[365831451,1749946232955,-693.0,0.00016585,2]
[365831453,1749946232965,-713.055994,0.0001666,2]
[365831455,1749946232974,-945.0,0.0001667,2]
[365831457,1749946232983,-867.9924602,0.00016801,2]
[365831459,1749946232993,-168.0,0.00016862,2]
[365831461,1749946233002,-2198.157,0.00016878,2]
[365831463,1749946233012,-155.0,0.00016878,2]
[365831465,1749946233022,-7066.0,0.00016878,2]
[365831467,1749946233032,-648.939,0.00016898,2]
[365831469,1749946233042,-119031.93981893,0.000169,2]
[365831472,1749946233054,-1133.24290978,0.000169,2]
[365831475,1749946233073,-3235.2310816,0.000169,2]
[365831477,1749946233084,-617.9141118,0.000169,2]
[365831480,1749946233110,-802.31557787,0.000169,2]
[365831788,1749946240071,-159.82030451,0.00016402,2]
[365831789,1749946240080,-564.2397504,0.00016878,2]
[365831790,1749946240091,-319.7602496,0.00016878,2]
[365831791,1749946240101,-131.58620877,0.000169,2]
[365831792,1749946240504,-26379.02609125,0.000169,2]
[365831793,1749946240514,-199.27371422,0.000169,2]
[365831794,1749946240524,-248.31242396,0.000169,2]
[365831795,1749946240534,-215.87704533,0.000169,2]
[365831796,1749946240543,-209.66174142,0.000169,2]
[365831797,1749946240552,-5267.2880728,0.000169,2]
[365831798,1749946240562,-646.72935864,0.000169,2]
[365831799,1749946240572,-151.0,0.00016948,2]
[365831800,1749946240581,-151.0,0.00016965,2]
[365831801,1749946240591,-500.0,0.00016973,2]
[365831802,1749946240601,-500.0,0.00016973,2]
[365831803,1749946240610,-386.35113884,0.00016981,2]
[365831804,1749946240619,-168.05642917,0.00016981,2]
[365831805,1749946240628,-4111.71,0.00016982,2]
[365831806,1749946240639,-151.0,0.00016983,2]
[365831807,1749946240648,-500.0,0.00016986,2]
[365831808,1749946240658,-500.0,0.00016986,2]
[365831809,1749946240667,-500.0,0.00016986,2]
[365831810,1749946240677,-500.0,0.00016986,2]
[365831811,1749946240686,-500.0,0.00016986,2]
[365831812,1749946240695,-500.0,0.00016986,2]
[365831813,1749946240704,-4111.71,0.0001699,2]
[365831814,1749946240714,-1194.053864,0.00016992,2]
[365831815,1749946240723,-29155.2753083,0.00016992,2]
[365831816,1749946240732,-665.5271134,0.00016992,2]
[365831817,1749946240742,-1697.514794,0.00016992,2]
[365831818,1749946240751,-300.0,0.00016999,2]
[365831819,1749946240761,-300.0,0.00016999,2]
[365831820,1749946240771,-150.0,0.00016999,2]
[365831821,1749946240785,-150.0,0.00016999,2]
[365831822,1749946240794,-150.0,0.00016999,2]
[365831823,1749946240803,-150.0,0.00016999,2]
[365831824,1749946240813,-500.0,0.00016999,2]
[365831825,1749946240823,-150.0,0.00016999,2]
[365831826,1749946240832,-150.0,0.00016999,2]
[365831827,1749946240841,-150.0,0.00016999,2]
[365831829,1749946240850,-150.0,0.00016999,2]
[365831830,1749946240860,-300.0,0.00016999,2]
[365831831,1749946240869,-178.51,0.00016999,2]
[365831832,1749946240878,-150.0,0.00016999,2]
[365831833,1749946240887,-500.0,0.00016999,2]
[365831834,1749946240896,-726.0,0.00016999,2]
[365831835,1749946240905,-150.0,0.00016999,2]
[365831836,1749946240914,-150.0,0.00016999,2]
[365831837,1749946240924,-500.0,0.00016999,2]
[365831838,1749946240933,-2370.69030639,0.00016999,2]
[365831839,1749946240943,-705471.7256841,0.00016999,2]
[365831845,1749946246155,-12514.87720388,0.00016999,2]
[365831846,1749946246218,-4241.3904,0.00016999,2]
[365831847,1749946246538,-1118.57625427,0.00016999,2]
[365831848,1749946256906,782.95,0.00014403,2]
[365831850,1749946350702,150.0,0.00022701,120]
[365831853,1749946811724,201.0,0.0001555,2]
[365831857,1749946950479,150.0,0.00022751,120]
[365831859,1749946961954,204.0,0.0001555,2]
[365831860,1749947018959,366.07,0.00013699,2]
[365831861,1749947021310,200.0,0.0001555,2]
[365831863,1749947070738,150.0,0.00019287,120]
[365831864,1749947081471,205.0,0.0001555,2]
[365831865,1749947171786,172.2,0.0001572,2]
[365831866,1749947171812,28.8,0.0001572,2]
[365831867,1749947174695,490.0,0.00024657,120]
[365831868,1749947191044,150.0,0.00019508,120]
[365831888,1749947272009,250.0,0.00015441,2]
[365831889,1749947307990,1000.0,0.00015427,2]
[365831890,1749947310496,150.0,0.00023982,120]
[365831891,1749947314432,666.0,0.00015427,2]
[365831895,1749947318652,2000.0,0.00015427,2]
[365831897,1749947371735,150.0,0.00023459,120]
[365831904,1749947432309,-172.15,0.00015902,2]
[365831905,1749947432318,-85.49475811,0.00015904,2]
[365831906,1749947432329,-164.50524189,0.00015904,2]
[365831907,1749947432339,-172.15,0.00015906,2]
[365831908,1749947432348,-172.15,0.0001591,2]
[365831909,1749947432358,-250.0,0.0001591,2]
[365831910,1749947432367,-172.15,0.00015914,2]
[365831911,1749947432376,-172.15,0.00015919,2]
[365831912,1749947432386,-172.15,0.00015923,2]
[365831913,1749947432396,-172.15,0.00015927,2]
[365831914,1749947432405,-124.66525811,0.00015931,2]
[365831915,1749947432418,-47.48474189,0.00015931,2]
[365831916,1749947432427,-172.15,0.00015935,2]
[365831917,1749947432436,-172.15,0.0001594,2]
[365831918,1749947432446,-279.58,0.00015942,2]
[365831919,1749947432455,-100.06409756,0.00015944,2]
[365831920,1749947432467,-72.08590244,0.00015944,2]
[365831921,1749947432476,-172.15,0.00015948,2]
[365831922,1749947432485,-172.15,0.00015952,2]
[365831923,1749947432495,-172.15,0.00015956,2]
[365831924,1749947432504,-40.70329141,0.00015961,2]
[365831931,1749947432908,-131.44670859,0.00015961,2]
[365831932,1749947432917,-172.15,0.00015965,2]
[365831933,1749947432927,-172.15,0.00015969,2]
[365831934,1749947432936,-4.79444827,0.00015973,2]
[365831935,1749947432964,-167.35555173,0.00015973,2]
[365831936,1749947432974,-172.15,0.00015977,2]
[365831937,1749947432984,-172.15,0.00015982,2]
[365831938,1749947432993,-111.02955723,0.00016,2]
[365831939,1749947433005,-3968.79044277,0.00016,2]
[365831940,1749947433014,-4079.82,0.00016,2]
[365831941,1749947433024,-4079.82,0.00016,2]
[365831942,1749947433034,-4079.82,0.00016,2]
[365831943,1749947433043,-4079.82,0.00016,2]
[365831944,1749947433053,-345.47,0.00016011,2]
[365831945,1749947433063,-543.7,0.00016016,2]
[365831946,1749947433073,-936.98619214,0.0001615,2]
[365831947,1749947433082,-1200.0,0.0001615,2]
[365831948,1749947433093,-300.0,0.00016154,2]
[365831949,1749947433102,-300.0,0.00016157,2]
[365831950,1749947433112,-500.0,0.00016165,2]
[365831951,1749947433122,-723.0,0.00016517,2]
[365831952,1749947433132,-833.63237626,0.00016657,2]
[365831953,1749947433142,-151.0,0.00016657,2]
[365831954,1749947433154,-151.0,0.00016657,2]
[365831955,1749947433164,-305.92384469,0.00016657,2]
[365831956,1749947433173,-207.4,0.00016657,2]
[365831957,1749947433183,-500.0,0.00016657,2]
[365831958,1749947433193,-500.0,0.00016657,2]
[365831959,1749947433203,-633.26835985,0.00016657,2]
[365831960,1749947433213,-256.4583895,0.00016657,2]
[365831961,1749947433222,-963.83983015,0.00016657,2]
[365831962,1749947433233,-151.0,0.00016657,2]
[365831963,1749947433244,-782.95,0.00016667,2]
[365831964,1749947433255,-1196.30056464,0.00016667,2]
[365831965,1749947433267,-295.86140376,0.00016667,2]
[365831966,1749947433279,-1415.0,0.00016667,2]
[365831967,1749947433291,-10399.2480316,0.00016667,2]
[365831968,1749947433301,-805.67,0.00016667,2]
[365831969,1749947433311,-867.9924602,0.0001674,2]
[365831970,1749947433320,-2603.35535447,0.00016881,2]
[365831971,1749947433330,-4831.59886513,0.00016886,2]
[365831972,1749947433339,-4831.59886508,0.00016888,2]
[365831973,1749947433349,-4831.59886508,0.00016889,2]
[365831974,1749947433358,-1167.94126646,0.00016891,2]
[365831975,1749947433375,-1046.6456,0.00016891,2]
[365831976,1749947433388,-2617.01199862,0.00016891,2]
[365831977,1749947433397,-4831.59886508,0.00016892,2]
[365831978,1749947433408,-4831.59886508,0.00016894,2]
[365831979,1749947433418,-4831.59886508,0.00016895,2]
[365831980,1749947433428,-4831.59886508,0.00016897,2]
[365831981,1749947433437,-227.9411,0.00016898,2]
[365831982,1749947433447,-4831.59886508,0.00016898,2]
[365831983,1749947433457,-499.98032799,0.00016899,2]
[365831984,1749947433466,-500.0,0.00016899,2]
[365831985,1749947433476,-429.34777795,0.00016899,2]
[365831986,1749947433485,-500.0,0.00016899,2]
[365831987,1749947433495,-331.14799993,0.00016899,2]
[365831988,1749947433504,-339.79770063,0.00016899,2]
[365831989,1749947433514,-369.15134827,0.00016899,2]
[365831990,1749947433523,-315.88359578,0.00016899,2]
[365831991,1749947433533,-4123.7975,0.000169,2]
[365831992,1749947433543,-195.42797582,0.000169,2]
[365831993,1749947433553,-611.652,0.000169,2]
[365831994,1749947433562,-151.22183532,0.000169,2]
[365831995,1749947433571,-2847.86862222,0.000169,2]
[365831999,1749947438249,-321.22959,0.000169,2]
[365832000,1749947438260,-586.35,0.000169,2]
[365832001,1749947438272,-1076.15065286,0.000169,2]
[365832002,1749947438281,-879.64910151,0.000169,2]
[365832003,1749947438290,-5091.71180361,0.000169,2]
[365832004,1749947438299,-13992.48844202,0.000169,2]
[365832005,1749947438574,-1000.0029746,0.000169,2]
[365832006,1749947438586,-582.49676357,0.000169,2]
[365832317,1749947441746,-82187.67969684,0.000169,2]
[365832319,1749947441757,-313.11600898,0.000169,2]
[365832321,1749947441766,-431.15290576,0.000169,2]
[365832323,1749947441775,-201.0,0.00016917,3]
[365832325,1749947441784,-700.0,0.0001697,2]
[365832327,1749947441793,-883.94982889,0.0001697,2]
[365832329,1749947441803,-507.20256453,0.00016973,2]
[365832331,1749947441812,-500.0,0.00016973,2]
[365832333,1749947441822,-500.0,0.00016973,2]
[365832335,1749947441831,-500.0,0.00016973,2]
[365832337,1749947441840,-500.0,0.00016973,2]
[365832339,1749947441850,-500.0,0.00016973,2]
[365832341,1749947441859,-500.0,0.00016973,2]
[365832343,1749947441868,-8038.69284314,0.0001698,2]
[365832345,1749947441878,-7424.0,0.00016986,2]
[365832347,1749947441888,-408.13608082,0.0001699,2]
[365832349,1749947441897,-408.13608082,0.0001699,2]
[365832351,1749947441906,-408.13608082,0.0001699,2]
[365832353,1749947441916,-199.81714112,0.00016997,2]
[365832355,1749947441926,-334.21708286,0.00016997,2]
[365832357,1749947441935,-500.0,0.00016997,2]
[365832359,1749947441945,-179.43391719,0.00016997,2]
[365832361,1749947441954,-500.0,0.00016997,2]
[365832363,1749947441963,-191.99703399,0.00016997,2]
[365832365,1749947441972,-500.0,0.00016997,2]
[365832367,1749947441982,-500.0,0.00016997,2]
[365832369,1749947441990,-500.0,0.00016997,2]
[365832371,1749947442000,-500.0,0.00016997,2]
[365832373,1749947442009,-500.0,0.00016997,2]
[365832375,1749947442019,-500.0,0.00016997,2]
[365832377,1749947442028,-500.0,0.00016997,2]
[365832379,1749947442038,-399.48239045,0.00016997,2]
[365832380,1749947442047,-500.0,0.00016997,2]
[365832381,1749947442056,-500.0,0.00016997,2]
[365832382,1749947442065,-500.0,0.00016997,2]
[365832383,1749947442075,-500.0,0.00016997,2]
[365832384,1749947442084,-500.0,0.00016997,2]
[365832385,1749947442094,-1690.9813813,0.00016998,2]
[365832386,1749947442103,-63334.4545243,0.00016998,2]
[365832387,1749947442113,-1438.9955566,0.00016998,2]
[365832388,1749947442122,-3181.8143032,0.00016998,2]
[365832389,1749947442131,-1771.9759342,0.00016998,2]
[365832390,1749947442140,-253.1649468,0.00016998,2]
[365832392,1749947442154,-300.0,0.00016999,2]
[365832393,1749947442163,-171.07,0.00016999,2]
[365832395,1749947442171,-150.0,0.00016999,2]
[365832397,1749947442180,-150.0,0.00016999,2]
[365832399,1749947442190,-500.0,0.00016999,2]
[365832401,1749947442200,-150.0,0.00016999,2]
[365832403,1749947442209,-150.0,0.00016999,2]
[365832405,1749947442218,-150.0,0.00016999,2]
[365832407,1749947442229,-150.0,0.00016999,2]
[365832409,1749947442239,-500.0,0.00016999,2]
[365832411,1749947442249,-500.0,0.00016999,2]
[365832413,1749947442261,-696.0,0.00016999,2]
[365832416,1749947442270,-150.0,0.00016999,2]
[365832418,1749947442279,-150.0,0.00016999,2]
[365832419,1749947442288,-207.58129561,0.00016999,2]
[365832421,1749947442298,-150.0,0.00016999,2]
[365832423,1749947442307,-150.0,0.00016999,2]
[365832425,1749947442316,-150.0,0.00016999,2]
[365832427,1749947442326,-500.0,0.00016999,2]
[365832429,1749947442335,-500.0,0.00016999,2]
[365832432,1749947442345,-300.0,0.00016999,2]
[365832434,1749947442354,-512.0,0.00017,2]
[365832435,1749947442363,-2370.69030639,0.00017,2]
[365832437,1749947442372,-515859.20281228,0.00017,2]
[365832439,1749947442381,-1160.0,0.00017,2]
[365832442,1749947442391,-291.506,0.00017,2]
[365832444,1749947442400,-4087.0,0.00017,2]
[365832446,1749947442409,-3331.0,0.00017,2]
[365832448,1749947442418,-7066.0,0.00017,2]
[365832449,1749947442428,-943662.39508912,0.00017,2]
[365832451,1749947442437,-1060963.03801838,0.00017,2]
[365832454,1749947442454,-41610.2620624,0.00017,2]
[365832456,1749947442464,-267.59710267,0.00017,2]
[365832958,1749947448986,733.13,0.00014469,2]
[365832961,1749947550708,150.0,0.00021982,120]
[365832964,1749947610653,150.0,0.00021455,120]
[365832965,1749947838022,2839.4728567,0.00025,120]
[365832966,1749947889772,500.0,0.00025,120]
[365832970,1749948081865,362.37,0.00013699,2]
[365832971,1749948243797,3200.0,0.00025,120]
[365832972,1749948251913,201.0,0.00015114,2]
[365832973,1749948297098,20054.71,0.00015756,2]
[365832974,1749948316357,250.0,0.00015679,2]
[365832975,1749948373482,500.0,0.0001557,2]
[365832976,1749948390512,150.0,0.00021923,120]
[365832977,1749948401582,204.0,0.00015114,2]
[365833000,1749948434137,724.94,0.00013651,2]
[365833004,1749948450706,1000.0,0.00015529,2]
[365833007,1749948500216,666.0,0.00015506,2]
[365833008,1749948521473,204.0,0.00015114,2]
[365833010,1749948612769,201.0,0.00015361,2]
[365833011,1749948621046,200.0,0.00015587,2]
[365833012,1749948630748,150.0,0.00021971,120]
[365833027,1749948631438,-165.43168818,0.00015869,2]
[365833028,1749948631448,-250.0,0.00015869,2]
[365833029,1749948631458,-172.73,0.00015869,2]
[365833030,1749948631467,-78.8678207,0.00015879,2]
[365833031,1749948631478,-221.1321793,0.00015879,2]
[365833032,1749948631487,-300.0,0.0001589,2]
[365833033,1749948631496,-397.72849609,0.00015915,2]
[365833034,1749948631518,-327.21150391,0.00015915,2]
[365833035,1749948631528,-522.78849609,0.00015951,2]
[365833036,1749948631540,-1208.71795911,0.00015951,2]
[365833037,1749948631552,-143.6135448,0.00015951,2]
[365833038,1749948631561,-165.43168818,0.00015951,2]
[365833039,1749948631570,-273.13,0.00016,2]
[365833040,1749948631580,-273.13,0.00016,2]
[365833041,1749948631590,-30.69476702,0.00016,2]
[365833042,1749948631659,-242.43523298,0.00016,2]
[365833043,1749948631668,-273.13,0.00016,2]
[365833044,1749948631677,-273.13,0.00016,2]
[365833045,1749948631687,-300.0,0.00016149,2]
[365833046,1749948631696,-5687.10890651,0.0001615,2]
[365833047,1749948631705,-151.0,0.00016156,2]
[365833048,1749948631714,-1957.856,0.00016156,2]
[365833049,1749948631723,-1000.0,0.00016156,2]
[365833050,1749948631733,-551.55941139,0.00016156,2]
[365833051,1749948631742,-207.4,0.00016156,2]
[365833052,1749948631751,-500.0,0.00016165,2]
[365833053,1749948631760,-492.71,0.00016165,2]
[365833054,1749948631769,-493.18,0.00016165,2]
[365833056,1749948631778,-490.43,0.00016165,2]
[365833058,1749948631787,-492.3,0.00016165,2]
[365833060,1749948631797,-508.83,0.00016166,2]
[365833062,1749948631806,-509.78,0.00016166,2]
[365833064,1749948631815,-501.17,0.00016166,2]
[365833065,1749948631824,-492.2,0.00016166,2]
[365833067,1749948631833,-497.24,0.00016166,2]
[365833069,1749948631842,-494.68,0.00016166,2]
[365833071,1749948631851,-494.34,0.00016166,2]
[365833073,1749948631860,-502.59,0.00016167,2]
[365833075,1749948631869,-501.78,0.00016167,2]
[365833077,1749948631878,-492.89,0.00016167,2]
[365833079,1749948631887,-503.34,0.00016167,2]
[365833082,1749948631897,-491.14,0.00016167,2]
[365833085,1749948631906,-505.52,0.00016169,2]
[365833087,1749948631915,-492.38,0.00016169,2]
[365833089,1749948631924,-491.52,0.00016169,2]
[365833091,1749948631933,-499.7,0.00016169,2]
[365833093,1749948631942,-492.21,0.00016169,2]
[365833095,1749948631951,-490.1,0.00016174,2]
[365833097,1749948631961,-507.31,0.00016174,2]
[365833099,1749948631970,-495.32,0.00016174,2]
[365833101,1749948631980,-496.09,0.00016174,2]
[365833103,1749948631990,-497.93,0.00016174,2]
[365833105,1749948631999,-508.13,0.00016174,2]
[365833107,1749948632008,-494.32,0.00016174,2]
[365833109,1749948632017,-497.68,0.00016183,2]
[365833111,1749948632026,-504.85,0.00016183,2]
[365833113,1749948632035,-502.29,0.00016183,2]
[365833115,1749948632045,-494.0,0.00016183,2]
[365833117,1749948632054,-496.83,0.00016183,2]
[365833119,1749948632063,-458.06,0.00016203,2]
[365833121,1749948632072,-2030.296672,0.00016211,2]
[365833123,1749948632081,-500.0,0.00016247,2]
[365833125,1749948632091,-2105.41764886,0.00016266,2]
[365833127,1749948632100,-2183.31810187,0.00016321,2]
[365833129,1749948632110,-769.0,0.00016347,2]
[365833131,1749948632119,-2264.10087164,0.00016376,2]
[365833133,1749948632128,-448.0,0.00016411,2]
[365833135,1749948632137,-151.0,0.00016412,2]
[365833137,1749948632146,-151.0,0.00016412,2]
[365833139,1749948632156,-151.0,0.00016412,2]
[365833141,1749948632165,-151.0,0.00016415,2]
[365833143,1749948632175,-2347.87260389,0.00016431,2]
[365833145,1749948632184,-2434.74389024,0.00016486,2]
[365833147,1749948632193,-1411.0,0.00016488,2]
[365833149,1749948632202,-2524.82941417,0.00016541,2]
[365833151,1749948632211,-2618.2481025,0.00016596,2]
[365833153,1749948632220,-201.0,0.00016636,3]
[365833155,1749948632231,-23.22703803,0.00016651,2]
[365833157,1749948632242,-362.02922114,0.00016651,2]
[365833159,1749948632253,-2087.6856,0.00016651,2]
[365833161,1749948632265,-242.18142312,0.00016651,2]
[365833164,1749948632277,-730.191059,0.0001666,2]
[365833166,1749948632287,-500.0,0.00016705,2]
[365833167,1749948632298,-500.0,0.00016705,2]
[365833169,1749948632308,-177.62751288,0.00016705,2]
[365833423,1749948637425,-322.37248712,0.00016705,2]
[365833424,1749948637435,-420.86180903,0.00016705,2]
[365833425,1749948637444,-500.0,0.00016705,2]
[365833426,1749948637454,-2361.22626585,0.00016706,2]
[365833427,1749948637465,-454.35657789,0.00016706,2]
[365833428,1749948637475,-61.86342211,0.00016733,2]
[365833429,1749948637488,-90.85657789,0.00016733,2]
[365833430,1749948637497,-964.24420943,0.00016761,2]
[365833431,1749948637551,-521.05,0.00016761,2]
[365833432,1749948637623,-788.79705081,0.00016761,2]
[365833433,1749948637634,-833.63237626,0.00016806,2]
[365833434,1749948637643,-1489.13500001,0.0001683,2]
[365833436,1749948637652,-300.0,0.00016859,2]
[365833438,1749948637662,-3333.4966,0.00016899,2]
[365833440,1749948637672,-276.39814629,0.00016899,2]
[365833442,1749948637682,-281.80440801,0.00016899,2]
[365833444,1749948637691,-167.50969356,0.000169,2]
[365833446,1749948637701,-287.4352705,0.000169,2]
[365833448,1749948637710,-151.22183529,0.000169,2]
[365833450,1749948637719,-711.77892641,0.000169,2]
[365833452,1749948637731,-421.29496167,0.000169,2]
[365833463,1749948639559,-1508.75917169,0.000169,2]
[365833464,1749948639570,-2299.52921924,0.000169,2]
[365833465,1749948639579,-384.31471558,0.00016973,2]
[365833491,1749948640342,-115.68528442,0.00016973,2]
[365833492,1749948640352,-500.0,0.00016973,2]
[365833493,1749948640361,-489.322,0.0001699,2]
[365833494,1749948640371,-233.951958,0.00016998,2]
[365833495,1749948640379,-500.0,0.00016998,2]
[365833496,1749948640390,-500.0,0.00016998,2]
[365833497,1749948640400,-500.0,0.00016998,2]
[365833498,1749948640409,-500.0,0.00016998,2]
[365833499,1749948640418,-500.0,0.00016998,2]
[365833500,1749948640427,-500.0,0.00016998,2]
[365833501,1749948640436,-500.0,0.00016998,2]
[365833502,1749948640445,-500.0,0.00016998,2]
[365833503,1749948640454,-500.0,0.00016998,2]
[365833504,1749948640463,-500.0,0.00016998,2]
[365833505,1749948640472,-179.63767331,0.00016998,2]
[365833506,1749948640482,-500.0,0.00016998,2]
[365833507,1749948640491,-500.0,0.00016998,2]
[365833508,1749948640500,-500.0,0.00016998,2]
[365833509,1749948640509,-500.0,0.00016998,2]
[365833510,1749948640519,-500.0,0.00016998,2]
[365833511,1749948640528,-500.0,0.00016998,2]
[365833512,1749948640538,-500.0,0.00016998,2]
[365833513,1749948640549,-350.0,0.00016998,2]
[365833514,1749948640558,-47505.6243215,0.00016998,2]
[365833515,1749948640567,-666.5608978,0.00016998,2]
[365833516,1749948640576,-2277.7350828,0.00016998,2]
[365833517,1749948640587,-39999.323187,0.00016998,2]
[365833518,1749948640596,-163.94,0.00016999,2]
[365833519,1749948640605,-1001.6933,0.00016999,2]
[365833520,1749948640614,-31278.30630168,0.00016999,2]